[Event "Titled Tuesday Blitz April 11 Late 2023"]
[White "Sieciechowicz, Marcin"]
[Black "Baches Garcia, Guillermo"]
[WhiteFideId "1130170"]
[BlackFideId "2209764"]
[WhiteElo "2302"]
[BlackElo "2334"]
[Result "1/2-1/2"]
[Round "03"]
[TimeControl "180+2"]
[Date "2023.04.11"]
[WhiteClock "0:00:04"]
[BlackClock "0:00:23"]

1. d4 {[%clk 0:03:00]}  Nf6 {[%clk 0:02:59]} 2. c4 {[%clk 0:03:00]}  e6 {[%clk 0:03:00]} 3. Nc3 {[%clk 0:02:59]}  d5 {[%clk 0:03:01]} 4. cxd5 {[%clk 0:02:59]}  Nxd5 {[%clk 0:03:01]} 5. e4 {[%clk 0:02:58]}  Nxc3 {[%clk 0:03:01]} 6. bxc3 {[%clk 0:02:59]}  c5 {[%clk 0:03:02]} 7. Nf3 {[%clk 0:02:57]}  cxd4 {[%clk 0:03:02]} 8. cxd4 {[%clk 0:02:58]}  Bb4+ {[%clk 0:03:02]} 9. Bd2 {[%clk 0:02:55]}  Bxd2+ {[%clk 0:03:03]} 10. Qxd2 {[%clk 0:02:56]}  O-O {[%clk 0:03:03]} 11. Bc4 {[%clk 0:02:40]}  Nd7 {[%clk 0:03:03]} 12. O-O {[%clk 0:02:36]}  b6 {[%clk 0:03:04]} 13. Rfe1 {[%clk 0:02:33]}  Bb7 {[%clk 0:03:04]} 14. Rad1 {[%clk 0:02:31]}  Rc8 {[%clk 0:03:04]} 15. Bb3 {[%clk 0:02:31]}  Re8 {[%clk 0:03:04]} 16. h4 {[%clk 0:02:11]}  h6 {[%clk 0:03:03]} 17. h5 {[%clk 0:01:41]}  b5 {[%clk 0:02:54]} 18. a4 {[%clk 0:01:32]}  a6 {[%clk 0:02:49]} 19. axb5 {[%clk 0:01:31]}  axb5 {[%clk 0:02:50]} 20. d5 {[%clk 0:01:18]}  Nc5 {[%clk 0:02:40]} 21. dxe6 {[%clk 0:01:08]}  fxe6 {[%clk 0:01:57]} 22. Qb4 {[%clk 0:01:08]}  Qb6 {[%clk 0:01:47]} 23. Ne5 {[%clk 0:01:08]}  Rcd8 {[%clk 0:01:39]} 24. Bc2 {[%clk 0:00:43]}  Qc7 {[%clk 0:01:28]} 25. Ng6 {[%clk 0:00:34]}  Ba6 {[%clk 0:01:09]} 26. e5 {[%clk 0:00:28]}  Na4 {[%clk 0:00:51]} 27. Bb3 {[%clk 0:00:27]}  Nc3 {[%clk 0:00:45]} 28. Ra1 {[%clk 0:00:20]}  Bb7 {[%clk 0:00:42]} 29. Re3 {[%clk 0:00:18]}  Nd5 {[%clk 0:00:38]} 30. Bxd5 {[%clk 0:00:18]}  Bxd5 {[%clk 0:00:38]} 31. Qxb5 {[%clk 0:00:18]}  Rb8 {[%clk 0:00:36]} 32. Qe2 {[%clk 0:00:17]}  Rec8 {[%clk 0:00:35]} 33. Rg3 {[%clk 0:00:16]}  Kh7 {[%clk 0:00:32]} 34. Qd3 {[%clk 0:00:14]}  Qc2 {[%clk 0:00:32]} 35. Qxc2 {[%clk 0:00:13]}  Rxc2 {[%clk 0:00:31]} 36. Ra7 {[%clk 0:00:10]}  Rc4 {[%clk 0:00:28]} 37. Kh2 {[%clk 0:00:07]}  Re4 {[%clk 0:00:26]} 38. f3 {[%clk 0:00:06]}  Re1 {[%clk 0:00:24]} 39. Rg4 {[%clk 0:00:05]}  Reb1 {[%clk 0:00:23]} 40. Rd4 {[%clk 0:00:04]}  R1b7 {[%clk 0:00:23]} 41. Rxb7 {[%clk 0:00:03]}  Rxb7 {[%clk 0:00:24]} 42. Kg3 {[%clk 0:00:04]}  Rb2 {[%clk 0:00:24]} 43. Nf4 {[%clk 0:00:04]}  Ba2 {[%clk 0:00:23]} 44. Rd6 {[%clk 0:00:04]}  Rb5 {[%clk 0:00:23]} 45. Nxe6 {[%clk 0:00:04]}  Rxe5 {[%clk 0:00:23]} 46. Nf8+ {[%clk 0:00:04]}  Kg8 {[%clk 0:00:23]} 47. Ng6 {[%clk 0:00:05]}  Rxh5 {[%clk 0:00:22]} 48. Rd8+ {[%clk 0:00:04]}  Kh7 {[%clk 0:00:22]} 49. Nf8+ {[%clk 0:00:04]}  Kg8 {[%clk 0:00:22]} 50. Ng6+ {[%clk 0:00:04]}  Kh7 {[%clk 0:00:22]} 51. Nf8+ {[%clk 0:00:04]}  Kg8 {[%clk 0:00:23]} 52. Ng6+ {[%clk 0:00:04]} 1/2-1/2


[Site "https://www.chess.com"]

[Event "Titled Tuesday Blitz April 11 Late 2023"]
[White "Petrova, Irina"]
[Black "Sai Krishna G V"]
[WhiteFideId "14124122"]
[BlackFideId "5028280"]
[WhiteElo "2084"]
[BlackElo "2359"]
[Result "1/2-1/2"]
[Round "03"]
[TimeControl "180+2"]
[Date "2023.04.11"]
[WhiteClock "0:00:13"]
[BlackClock "0:00:32"]

1. e4 {[%clk 0:03:00]}  c5 {[%clk 0:03:00]} 2. Nf3 {[%clk 0:02:59]}  d6 {[%clk 0:03:00]} 3. Bb5+ {[%clk 0:02:59]}  Nc6 {[%clk 0:02:58]} 4. Bxc6+ {[%clk 0:02:57]}  bxc6 {[%clk 0:02:59]} 5. O-O {[%clk 0:02:58]}  g6 {[%clk 0:02:59]} 6. c3 {[%clk 0:02:57]}  Bg7 {[%clk 0:02:59]} 7. d4 {[%clk 0:02:57]}  cxd4 {[%clk 0:02:58]} 8. cxd4 {[%clk 0:02:58]}  Nh6 {[%clk 0:02:56]} 9. Nc3 {[%clk 0:02:56]}  O-O {[%clk 0:02:56]} 10. h3 {[%clk 0:02:51]}  Rb8 {[%clk 0:02:55]} 11. Re1 {[%clk 0:02:50]}  Qa5 {[%clk 0:02:51]} 12. Qc2 {[%clk 0:02:38]}  f5 {[%clk 0:02:44]} 13. Bd2 {[%clk 0:02:33]}  Qb6 {[%clk 0:02:40]} 14. b3 {[%clk 0:02:29]}  f4 {[%clk 0:02:39]} 15. Rac1 {[%clk 0:02:25]}  Bd7 {[%clk 0:02:37]} 16. Na4 {[%clk 0:02:17]}  Qb5 {[%clk 0:02:37]} 17. Bc3 {[%clk 0:01:50]}  Qh5 {[%clk 0:02:36]} 18. Qe2 {[%clk 0:01:43]}  g5 {[%clk 0:02:36]} 19. d5 {[%clk 0:01:39]}  Bxc3 {[%clk 0:02:30]} 20. Nxc3 {[%clk 0:01:39]}  c5 {[%clk 0:02:30]} 21. e5 {[%clk 0:01:31]}  g4 {[%clk 0:02:30]} 22. hxg4 {[%clk 0:01:27]}  Bxg4 {[%clk 0:02:31]} 23. exd6 {[%clk 0:01:24]}  exd6 {[%clk 0:02:32]} 24. Ne4 {[%clk 0:01:23]}  Nf5 {[%clk 0:02:32]} 25. Ned2 {[%clk 0:01:18]}  Nd4 {[%clk 0:02:30]} 26. Qd3 {[%clk 0:01:14]}  Bxf3 {[%clk 0:02:19]} 27. Nxf3 {[%clk 0:01:15]}  Nxf3+ {[%clk 0:02:19]} 28. Qxf3 {[%clk 0:01:16]}  Qxf3 {[%clk 0:02:18]} 29. gxf3 {[%clk 0:01:17]}  Rbe8 {[%clk 0:02:09]} 30. Kg2 {[%clk 0:01:16]}  Kf7 {[%clk 0:02:08]} 31. Kh3 {[%clk 0:01:15]}  Kf6 {[%clk 0:02:02]} 32. Kg4 {[%clk 0:01:15]}  Re5 {[%clk 0:02:02]} 33. Rcd1 {[%clk 0:01:08]}  Rg8+ {[%clk 0:01:47]} 34. Kxf4 {[%clk 0:01:07]}  Rf5+ {[%clk 0:01:44]} 35. Ke3 {[%clk 0:01:01]}  Re8+ {[%clk 0:01:44]} 36. Kd3 {[%clk 0:00:56]}  Rxd5+ {[%clk 0:01:13]} 37. Kc4 {[%clk 0:00:54]}  Rxd1 {[%clk 0:01:12]} 38. Rxd1 {[%clk 0:00:49]}  Ke6 {[%clk 0:01:12]} 39. Rh1 {[%clk 0:00:48]}  Re7 {[%clk 0:01:10]} 40. Rh6+ {[%clk 0:00:48]}  Kd7 {[%clk 0:01:11]} 41. Kd5 {[%clk 0:00:46]}  Re5+ {[%clk 0:01:11]} 42. Kc4 {[%clk 0:00:45]}  Re7 {[%clk 0:01:10]} 43. Kd5 {[%clk 0:00:45]}  Re5+ {[%clk 0:01:11]} 44. Kc4 {[%clk 0:00:44]}  Kc6 {[%clk 0:01:11]} 45. Rxh7 {[%clk 0:00:43]}  d5+ {[%clk 0:01:11]} 46. Kd3 {[%clk 0:00:43]}  Rf5 {[%clk 0:01:11]} 47. Rxa7 {[%clk 0:00:41]}  Rxf3+ {[%clk 0:01:12]} 48. Ke2 {[%clk 0:00:41]}  Rc3 {[%clk 0:01:12]} 49. Kd2 {[%clk 0:00:39]}  d4 {[%clk 0:01:12]} 50. Rf7 {[%clk 0:00:33]}  Kb5 {[%clk 0:01:07]} 51. f4 {[%clk 0:00:28]}  Kb4 {[%clk 0:01:01]} 52. f5 {[%clk 0:00:27]}  Ka3 {[%clk 0:01:00]} 53. Ra7+ {[%clk 0:00:19]}  Kb2 {[%clk 0:01:00]} 54. f6 {[%clk 0:00:19]}  Rf3 {[%clk 0:00:56]} 55. f7 {[%clk 0:00:19]}  Rf5 {[%clk 0:00:44]} 56. Kd3 {[%clk 0:00:18]}  Rf3+ {[%clk 0:00:43]} 57. Kd2 {[%clk 0:00:14]}  Rf2+ {[%clk 0:00:41]} 58. Kd3 {[%clk 0:00:14]}  Rf3+ {[%clk 0:00:32]} 59. Kd2 {[%clk 0:00:13]} 1/2-1/2


[Site "https://www.chess.com"]

[Event "Titled Tuesday Blitz April 11 Late 2023"]
[White "Tarlabasi, Emirhan"]
[Black "Koc, Przemyslaw"]
[WhiteFideId "6350275"]
[BlackFideId "1109081"]
[WhiteElo "2200"]
[BlackElo "2161"]
[Result "1-0"]
[Round "03"]
[TimeControl "180+2"]
[Date "2023.04.11"]
[WhiteClock "0:00:19"]
[BlackClock "0:00:02"]

1. d4 {[%clk 0:03:00]}  d6 {[%clk 0:02:59]} 2. Nf3 {[%clk 0:03:01]}  Nf6 {[%clk 0:03:00]} 3. Nc3 {[%clk 0:03:01]}  Nbd7 {[%clk 0:02:59]} 4. e4 {[%clk 0:03:02]}  e5 {[%clk 0:02:59]} 5. Be2 {[%clk 0:03:01]}  Be7 {[%clk 0:02:58]} 6. h3 {[%clk 0:03:01]}  c6 {[%clk 0:02:57]} 7. Be3 {[%clk 0:03:00]}  Qc7 {[%clk 0:02:55]} 8. Qd2 {[%clk 0:03:01]}  h6 {[%clk 0:02:55]} 9. g4 {[%clk 0:03:01]}  b5 {[%clk 0:02:52]} 10. a3 {[%clk 0:02:55]}  a6 {[%clk 0:02:48]} 11. Rg1 {[%clk 0:02:53]}  c5 {[%clk 0:02:38]} 12. dxe5 {[%clk 0:02:40]}  dxe5 {[%clk 0:02:38]} 13. g5 {[%clk 0:02:37]}  hxg5 {[%clk 0:02:37]} 14. Rxg5 {[%clk 0:02:36]}  Bb7 {[%clk 0:02:26]} 15. Rxg7 {[%clk 0:02:32]}  Nxe4 {[%clk 0:02:22]} 16. Nxe4 {[%clk 0:02:32]}  Bxe4 {[%clk 0:02:23]} 17. Ng5 {[%clk 0:02:17]}  Bg6 {[%clk 0:02:16]} 18. Qd5 {[%clk 0:02:11]}  Nb6 {[%clk 0:02:11]} 19. Qf3 {[%clk 0:02:07]}  O-O-O {[%clk 0:01:56]} 20. Nxf7 {[%clk 0:01:58]}  Bxf7 {[%clk 0:01:50]} 21. Rxf7 {[%clk 0:01:58]}  Kb8 {[%clk 0:01:28]} 22. Rd1 {[%clk 0:01:48]}  Rxd1+ {[%clk 0:01:26]} 23. Kxd1 {[%clk 0:01:41]}  Qd7+ {[%clk 0:01:12]} 24. Kc1 {[%clk 0:01:37]}  Rxh3 {[%clk 0:01:08]} 25. Rxe7 {[%clk 0:01:17]}  Rxf3 {[%clk 0:01:07]} 26. Rxd7 {[%clk 0:01:17]}  Rxe3 {[%clk 0:01:08]} 27. Rd2 {[%clk 0:01:16]}  Rh3 {[%clk 0:01:04]} 28. b3 {[%clk 0:01:16]}  Kc7 {[%clk 0:01:02]} 29. Kb2 {[%clk 0:01:15]}  Rh2 {[%clk 0:01:01]} 30. Bg4 {[%clk 0:01:15]}  Rg2 {[%clk 0:00:54]} 31. Bf3 {[%clk 0:01:14]}  Rg6 {[%clk 0:00:53]} 32. Be4 {[%clk 0:01:13]}  Rd6 {[%clk 0:00:51]} 33. Re2 {[%clk 0:01:14]}  Nd7 {[%clk 0:00:39]} 34. f3 {[%clk 0:01:05]}  Nf6 {[%clk 0:00:36]} 35. Bd3 {[%clk 0:01:05]}  Re6 {[%clk 0:00:34]} 36. Bf5 {[%clk 0:01:02]}  Re7 {[%clk 0:00:33]} 37. c4 {[%clk 0:01:00]}  bxc4 {[%clk 0:00:32]} 38. bxc4 {[%clk 0:01:01]}  Ne8 {[%clk 0:00:32]} 39. Be4 {[%clk 0:00:59]}  Nd6 {[%clk 0:00:31]} 40. Bd5 {[%clk 0:01:00]}  Kd7 {[%clk 0:00:28]} 41. Kc3 {[%clk 0:00:58]}  Nf5 {[%clk 0:00:28]} 42. Rb2 {[%clk 0:00:58]}  Nd4 {[%clk 0:00:27]} 43. Rb7+ {[%clk 0:00:57]}  Ke8 {[%clk 0:00:27]} 44. Rb6 {[%clk 0:00:56]}  a5 {[%clk 0:00:26]} 45. Ra6 {[%clk 0:00:54]}  Rc7 {[%clk 0:00:24]} 46. Rxa5 {[%clk 0:00:54]}  Ke7 {[%clk 0:00:24]} 47. Ra6 {[%clk 0:00:53]}  Kd7 {[%clk 0:00:23]} 48. Rh6 {[%clk 0:00:53]}  Ne2+ {[%clk 0:00:22]} 49. Kd2 {[%clk 0:00:50]}  Nd4 {[%clk 0:00:22]} 50. a4 {[%clk 0:00:48]}  Rc8 {[%clk 0:00:20]} 51. Rh7+ {[%clk 0:00:45]}  Kd6 {[%clk 0:00:20]} 52. a5 {[%clk 0:00:42]}  Nb3+ {[%clk 0:00:20]} 53. Kc3 {[%clk 0:00:41]}  Nxa5 {[%clk 0:00:21]} 54. Rh6+ {[%clk 0:00:39]}  Kc7 {[%clk 0:00:21]} 55. Re6 {[%clk 0:00:36]}  Rf8 {[%clk 0:00:15]} 56. Rxe5 {[%clk 0:00:32]}  Nc6 {[%clk 0:00:14]} 57. Rh5 {[%clk 0:00:29]}  Nd4 {[%clk 0:00:14]} 58. Rh3 {[%clk 0:00:24]}  Kd6 {[%clk 0:00:13]} 59. Kd3 {[%clk 0:00:24]}  Rb8 {[%clk 0:00:11]} 60. Rh6+ {[%clk 0:00:22]}  Ke5 {[%clk 0:00:11]} 61. Ke3 {[%clk 0:00:17]}  Rb3+ {[%clk 0:00:11]} 62. Kf2 {[%clk 0:00:17]}  Nf5 {[%clk 0:00:10]} 63. Re6+ {[%clk 0:00:17]}  Kd4 {[%clk 0:00:09]} 64. Re4+ {[%clk 0:00:17]}  Kd3 {[%clk 0:00:09]} 65. Re2 {[%clk 0:00:17]}  Nd4 {[%clk 0:00:08]} 66. Re3+ {[%clk 0:00:17]}  Kc2 {[%clk 0:00:07]} 67. Rxb3 {[%clk 0:00:18]}  Kxb3 {[%clk 0:00:07]} 68. Ke3 {[%clk 0:00:18]}  Kc3 {[%clk 0:00:06]} 69. Ke4 {[%clk 0:00:18]}  Nc2 {[%clk 0:00:05]} 70. f4 {[%clk 0:00:18]}  Nb4 {[%clk 0:00:04]} 71. f5 {[%clk 0:00:18]}  Kb3 {[%clk 0:00:02]} 72. f6 {[%clk 0:00:19]}  Nxd5 {[%clk 0:00:02]} 73. Kxd5 {[%clk 0:00:19]} 1-0


[Site "https://www.chess.com"]

[Event "Titled Tuesday Blitz April 11 Late 2023"]
[White "Kujawski, Adam"]
[Black "Mamedov, Edgar"]
[WhiteFideId "1100920"]
[BlackFideId "13739980"]
[WhiteElo "2054"]
[BlackElo "2330"]
[Result "0-1"]
[Round "03"]
[TimeControl "180+2"]
[Date "2023.04.11"]
[WhiteClock "0:00:03"]
[BlackClock "0:00:44"]

1. e4 {[%clk 0:03:00]}  Nc6 {[%clk 0:02:59]} 2. d4 {[%clk 0:03:00]}  d5 {[%clk 0:02:59]} 3. Nc3 {[%clk 0:02:57]}  e6 {[%clk 0:02:57]} 4. Nf3 {[%clk 0:02:55]}  Nf6 {[%clk 0:02:54]} 5. Bd3 {[%clk 0:02:55]}  Nb4 {[%clk 0:02:49]} 6. Bg5 {[%clk 0:02:01]}  Nxd3+ {[%clk 0:02:47]} 7. Qxd3 {[%clk 0:02:01]}  Be7 {[%clk 0:02:31]} 8. e5 {[%clk 0:01:59]}  Nd7 {[%clk 0:02:27]} 9. Bxe7 {[%clk 0:01:52]}  Qxe7 {[%clk 0:02:26]} 10. Ne2 {[%clk 0:01:49]}  Qb4+ {[%clk 0:02:22]} 11. Qc3 {[%clk 0:01:47]}  Qxc3+ {[%clk 0:02:22]} 12. Nxc3 {[%clk 0:01:41]}  a6 {[%clk 0:02:21]} 13. Ne2 {[%clk 0:01:41]}  c5 {[%clk 0:02:20]} 14. c3 {[%clk 0:01:41]}  b5 {[%clk 0:02:16]} 15. Kd2 {[%clk 0:01:41]}  Bb7 {[%clk 0:02:15]} 16. a3 {[%clk 0:01:40]}  Ke7 {[%clk 0:02:14]} 17. b4 {[%clk 0:01:40]}  cxd4 {[%clk 0:02:12]} 18. cxd4 {[%clk 0:01:39]}  Nb6 {[%clk 0:02:12]} 19. Rhc1 {[%clk 0:01:29]}  Nc4+ {[%clk 0:02:11]} 20. Ke1 {[%clk 0:01:17]}  a5 {[%clk 0:02:11]} 21. Nd2 {[%clk 0:01:12]}  axb4 {[%clk 0:02:09]} 22. axb4 {[%clk 0:00:58]}  f6 {[%clk 0:02:08]} 23. Nxc4 {[%clk 0:00:53]}  dxc4 {[%clk 0:02:04]} 24. Nc3 {[%clk 0:00:46]}  Bc6 {[%clk 0:01:57]} 25. Ke2 {[%clk 0:00:37]}  fxe5 {[%clk 0:01:53]} 26. dxe5 {[%clk 0:00:36]}  Rhd8 {[%clk 0:01:51]} 27. Rxa8 {[%clk 0:00:27]}  Rxa8 {[%clk 0:01:49]} 28. Rc2 {[%clk 0:00:27]}  Ra3 {[%clk 0:01:48]} 29. f3 {[%clk 0:00:19]}  Rb3 {[%clk 0:01:47]} 30. Kd2 {[%clk 0:00:10]}  Rxb4 {[%clk 0:01:37]} 31. Ra2 {[%clk 0:00:10]}  Rb3 {[%clk 0:01:32]} 32. Ra7+ {[%clk 0:00:10]}  Kf8 {[%clk 0:01:30]} 33. Ne2 {[%clk 0:00:10]}  Rb2+ {[%clk 0:01:20]} 34. Ke3 {[%clk 0:00:10]}  b4 {[%clk 0:01:19]} 35. Nf4 {[%clk 0:00:08]}  Bd5 {[%clk 0:01:16]} 36. Nxd5 {[%clk 0:00:07]}  exd5 {[%clk 0:01:16]} 37. Kd4 {[%clk 0:00:06]}  Rd2+ {[%clk 0:01:15]} 38. Kc5 {[%clk 0:00:05]}  c3 {[%clk 0:01:07]} 39. Kd6 {[%clk 0:00:05]}  c2 {[%clk 0:00:51]} 40. e6 {[%clk 0:00:05]}  g5 {[%clk 0:00:45]} 41. Ra8+ {[%clk 0:00:04]}  Kg7 {[%clk 0:00:45]} 42. e7 {[%clk 0:00:02]}  Re2 {[%clk 0:00:44]} 43. e8=Q {[%clk 0:00:03]} 0-1


[Site "https://www.chess.com"]

[Event "Titled Tuesday Blitz April 11 Late 2023"]
[White "Danielyan, Vahe"]
[Black "Guzman Moneo, Alberto"]
[WhiteFideId "13304828"]
[BlackFideId "2209616"]
[WhiteElo "2423"]
[BlackElo "2157"]
[Result "1-0"]
[Round "03"]
[TimeControl "180+2"]
[Date "2023.04.11"]
[WhiteClock "0:00:29"]
[BlackClock "0:00:08"]

1. e4 {[%clk 0:03:00]}  c5 {[%clk 0:02:56]} 2. Nf3 {[%clk 0:02:58]}  Nc6 {[%clk 0:02:55]} 3. c3 {[%clk 0:02:55]}  Nf6 {[%clk 0:02:50]} 4. e5 {[%clk 0:02:54]}  Nd5 {[%clk 0:02:50]} 5. Bc4 {[%clk 0:02:52]}  e6 {[%clk 0:02:46]} 6. O-O {[%clk 0:02:51]}  d6 {[%clk 0:02:45]} 7. d4 {[%clk 0:02:36]}  Be7 {[%clk 0:02:37]} 8. exd6 {[%clk 0:02:30]}  Bxd6 {[%clk 0:02:37]} 9. dxc5 {[%clk 0:02:16]}  Bxc5 {[%clk 0:02:36]} 10. Nbd2 {[%clk 0:02:17]}  O-O {[%clk 0:02:35]} 11. Ne4 {[%clk 0:02:14]}  Be7 {[%clk 0:02:35]} 12. Re1 {[%clk 0:02:11]}  Nf6 {[%clk 0:02:35]} 13. Nxf6+ {[%clk 0:02:01]}  Bxf6 {[%clk 0:02:34]} 14. Qe2 {[%clk 0:02:02]}  e5 {[%clk 0:02:31]} 15. Bd3 {[%clk 0:01:55]}  Re8 {[%clk 0:02:22]} 16. Be4 {[%clk 0:01:45]}  Bg4 {[%clk 0:02:17]} 17. h3 {[%clk 0:01:42]}  Bh5 {[%clk 0:02:17]} 18. Be3 {[%clk 0:01:36]}  Qc7 {[%clk 0:02:07]} 19. Rad1 {[%clk 0:01:27]}  Rad8 {[%clk 0:02:04]} 20. Qb5 {[%clk 0:01:27]}  Rxd1 {[%clk 0:02:02]} 21. Rxd1 {[%clk 0:01:27]}  a6 {[%clk 0:01:54]} 22. Qb6 {[%clk 0:01:26]}  Qxb6 {[%clk 0:01:38]} 23. Bxb6 {[%clk 0:01:27]}  Bg6 {[%clk 0:01:38]} 24. Bxg6 {[%clk 0:01:26]}  hxg6 {[%clk 0:01:38]} 25. Rd7 {[%clk 0:01:27]}  Re7 {[%clk 0:01:33]} 26. Rd5 {[%clk 0:01:17]}  e4 {[%clk 0:01:27]} 27. Nd2 {[%clk 0:01:17]}  Kh7 {[%clk 0:01:05]} 28. Nc4 {[%clk 0:01:17]}  Ne5 {[%clk 0:01:01]} 29. Ne3 {[%clk 0:01:00]}  Bg5 {[%clk 0:00:51]} 30. Bc5 {[%clk 0:00:50]}  Re6 {[%clk 0:00:46]} 31. Bd4 {[%clk 0:00:48]}  Bxe3 {[%clk 0:00:45]} 32. fxe3 {[%clk 0:00:40]}  Nd3 {[%clk 0:00:39]} 33. Rd7 {[%clk 0:00:36]}  Nxb2 {[%clk 0:00:32]} 34. Rxf7 {[%clk 0:00:34]}  Kh6 {[%clk 0:00:27]} 35. Rxb7 {[%clk 0:00:32]}  Nd1 {[%clk 0:00:22]} 36. Bxg7+ {[%clk 0:00:31]}  Kh5 {[%clk 0:00:22]} 37. Bd4 {[%clk 0:00:32]}  g5 {[%clk 0:00:19]} 38. c4 {[%clk 0:00:31]}  g4 {[%clk 0:00:19]} 39. hxg4+ {[%clk 0:00:31]}  Kxg4 {[%clk 0:00:20]} 40. c5 {[%clk 0:00:32]}  Rg6 {[%clk 0:00:15]} 41. Rb6 {[%clk 0:00:30]}  Rg8 {[%clk 0:00:10]} 42. Rb1 {[%clk 0:00:30]}  Nxe3 {[%clk 0:00:05]} 43. Bxe3 {[%clk 0:00:29]}  Kf5 {[%clk 0:00:06]} 44. c6 {[%clk 0:00:30]}  Ke6 {[%clk 0:00:07]} 45. c7 {[%clk 0:00:29]}  Rc8 {[%clk 0:00:08]} 46. Bf4 {[%clk 0:00:29]}  Kd7 {[%clk 0:00:09]} 47. Rb8 {[%clk 0:00:29]}  a5 {[%clk 0:00:09]} 48. Rxc8 {[%clk 0:00:30]}  Kxc8 {[%clk 0:00:10]} 49. Kf2 {[%clk 0:00:30]}  a4 {[%clk 0:00:11]} 50. Ke3 {[%clk 0:00:31]}  a3 {[%clk 0:00:12]} 51. Kxe4 {[%clk 0:00:32]}  Kd7 {[%clk 0:00:13]} 52. g4 {[%clk 0:00:32]}  Kc8 {[%clk 0:00:14]} 53. g5 {[%clk 0:00:33]}  Kd7 {[%clk 0:00:09]} 54. g6 {[%clk 0:00:34]}  Ke6 {[%clk 0:00:09]} 55. g7 {[%clk 0:00:35]}  Kf7 {[%clk 0:00:10]} 56. c8=Q {[%clk 0:00:32]}  Kf6 {[%clk 0:00:09]} 57. Be5+ {[%clk 0:00:30]}  Kg6 {[%clk 0:00:07]} 58. g8=Q+ {[%clk 0:00:30]}  Kh5 {[%clk 0:00:08]} 59. Qh3# {[%clk 0:00:29]} 1-0


[Site "https://www.chess.com"]

[Event "Titled Tuesday Blitz April 11 Late 2023"]
[White "Gatterer, Florian"]
[Black "Ribeiro, Matheus Mendes Domingues"]
[WhiteFideId "811688"]
[BlackFideId "324226923"]
[WhiteElo "2221"]
[BlackElo "2168"]
[Result "1/2-1/2"]
[Round "03"]
[TimeControl "180+2"]
[Date "2023.04.11"]
[WhiteClock "0:00:27"]
[BlackClock "0:00:18"]

1. d4 {[%clk 0:03:00]}  d5 {[%clk 0:02:59]} 2. Nf3 {[%clk 0:03:01]}  e6 {[%clk 0:02:59]} 3. g3 {[%clk 0:03:00]}  Nf6 {[%clk 0:03:00]} 4. Bg2 {[%clk 0:03:01]}  Be7 {[%clk 0:03:00]} 5. O-O {[%clk 0:03:01]}  O-O {[%clk 0:03:01]} 6. c4 {[%clk 0:03:00]}  dxc4 {[%clk 0:03:02]} 7. Ne5 {[%clk 0:03:00]}  Nc6 {[%clk 0:03:02]} 8. Bxc6 {[%clk 0:02:59]}  bxc6 {[%clk 0:03:03]} 9. Nxc6 {[%clk 0:03:00]}  Qe8 {[%clk 0:03:03]} 10. Nxe7+ {[%clk 0:03:00]}  Qxe7 {[%clk 0:03:04]} 11. Qa4 {[%clk 0:03:00]}  c5 {[%clk 0:03:05]} 12. dxc5 {[%clk 0:02:44]}  Qxc5 {[%clk 0:02:58]} 13. Nc3 {[%clk 0:02:44]}  Bb7 {[%clk 0:02:52]} 14. Be3 {[%clk 0:02:38]}  Qh5 {[%clk 0:02:48]} 15. h4 {[%clk 0:02:32]}  Qg4 {[%clk 0:02:36]} 16. Kh2 {[%clk 0:02:03]}  Nd5 {[%clk 0:02:06]} 17. Nxd5 {[%clk 0:01:52]}  Bxd5 {[%clk 0:02:05]} 18. f3 {[%clk 0:01:48]}  Qf5 {[%clk 0:01:56]} 19. Bf2 {[%clk 0:01:29]}  Rab8 {[%clk 0:01:37]} 20. e4 {[%clk 0:01:20]}  Qxf3 {[%clk 0:01:37]} 21. exd5 {[%clk 0:01:17]}  Rxb2 {[%clk 0:01:37]} 22. Kg1 {[%clk 0:01:18]}  exd5 {[%clk 0:01:36]} 23. Rae1 {[%clk 0:01:08]}  h6 {[%clk 0:01:02]} 24. Qxa7 {[%clk 0:01:05]}  d4 {[%clk 0:00:57]} 25. Qxd4 {[%clk 0:01:00]}  c3 {[%clk 0:00:47]} 26. Re3 {[%clk 0:00:50]}  Qa8 {[%clk 0:00:43]} 27. Qxc3 {[%clk 0:00:45]}  Qxa2 {[%clk 0:00:41]} 28. Qa3 {[%clk 0:00:39]}  Qxa3 {[%clk 0:00:33]} 29. Rxa3 {[%clk 0:00:38]}  Re8 {[%clk 0:00:34]} 30. Re1 {[%clk 0:00:32]}  Rc8 {[%clk 0:00:31]} 31. Rf3 {[%clk 0:00:30]}  f6 {[%clk 0:00:29]} 32. Kf1 {[%clk 0:00:26]}  Rcc2 {[%clk 0:00:29]} 33. Re7 {[%clk 0:00:25]}  Rc6 {[%clk 0:00:22]} 34. Re2 {[%clk 0:00:23]}  Rb1+ {[%clk 0:00:21]} 35. Re1 {[%clk 0:00:23]}  Rb2 {[%clk 0:00:20]} 36. Rfe3 {[%clk 0:00:23]}  Kh7 {[%clk 0:00:14]} 37. R3e2 {[%clk 0:00:23]}  Rb7 {[%clk 0:00:14]} 38. Be3 {[%clk 0:00:23]}  Kg6 {[%clk 0:00:14]} 39. Bf2 {[%clk 0:00:23]}  Rc4 {[%clk 0:00:12]} 40. Kg2 {[%clk 0:00:22]}  h5 {[%clk 0:00:13]} 41. Rd1 {[%clk 0:00:22]}  Rb3 {[%clk 0:00:11]} 42. Rd4 {[%clk 0:00:21]}  Rxd4 {[%clk 0:00:07]} 43. Bxd4 {[%clk 0:00:20]}  Rd3 {[%clk 0:00:08]} 44. Bf2 {[%clk 0:00:20]}  Rd7 {[%clk 0:00:08]} 45. Re4 {[%clk 0:00:20]}  Rb7 {[%clk 0:00:08]} 46. Kf3 {[%clk 0:00:19]}  Rb3+ {[%clk 0:00:07]} 47. Be3 {[%clk 0:00:19]}  Rb1 {[%clk 0:00:07]} 48. Rd4 {[%clk 0:00:19]}  Rf1+ {[%clk 0:00:07]} 49. Kg2 {[%clk 0:00:19]}  Rb1 {[%clk 0:00:08]} 50. Kf3 {[%clk 0:00:19]}  Rf1+ {[%clk 0:00:08]} 51. Bf2 {[%clk 0:00:19]}  Rb1 {[%clk 0:00:09]} 52. Rd3 {[%clk 0:00:19]}  Rb5 {[%clk 0:00:09]} 53. Re3 {[%clk 0:00:18]}  Rf5+ {[%clk 0:00:09]} 54. Kg2 {[%clk 0:00:18]}  Rb5 {[%clk 0:00:10]} 55. Re4 {[%clk 0:00:18]}  Rb3 {[%clk 0:00:08]} 56. Re3 {[%clk 0:00:16]}  Rb5 {[%clk 0:00:08]} 57. Re4 {[%clk 0:00:16]}  Rb3 {[%clk 0:00:08]} 58. g4 {[%clk 0:00:16]}  hxg4 {[%clk 0:00:09]} 59. Rxg4+ {[%clk 0:00:15]}  Kh5 {[%clk 0:00:08]} 60. Rd4 {[%clk 0:00:14]}  g5 {[%clk 0:00:06]} 61. hxg5 {[%clk 0:00:13]}  fxg5 {[%clk 0:00:07]} 62. Rd8 {[%clk 0:00:10]}  Ra3 {[%clk 0:00:07]} 63. Rh8+ {[%clk 0:00:09]}  Kg4 {[%clk 0:00:07]} 64. Rd8 {[%clk 0:00:10]}  Rb3 {[%clk 0:00:06]} 65. Rd4+ {[%clk 0:00:09]}  Kh5 {[%clk 0:00:07]} 66. Rd8 {[%clk 0:00:10]}  Kg6 {[%clk 0:00:07]} 67. Rg8+ {[%clk 0:00:10]}  Kf5 {[%clk 0:00:07]} 68. Rd8 {[%clk 0:00:11]}  Rb5 {[%clk 0:00:07]} 69. Rf8+ {[%clk 0:00:10]}  Kg4 {[%clk 0:00:07]} 70. Rg8 {[%clk 0:00:11]}  Rd5 {[%clk 0:00:07]} 71. Rc8 {[%clk 0:00:10]}  Rb5 {[%clk 0:00:07]} 72. Rc4+ {[%clk 0:00:10]}  Kf5 {[%clk 0:00:07]} 73. Rc5+ {[%clk 0:00:10]}  Rxc5 {[%clk 0:00:07]} 74. Bxc5 {[%clk 0:00:11]}  Kg4 {[%clk 0:00:08]} 75. Bg1 {[%clk 0:00:11]}  Kh5 {[%clk 0:00:08]} 76. Bb6 {[%clk 0:00:11]}  Kg6 {[%clk 0:00:09]} 77. Bc7 {[%clk 0:00:12]}  Kh5 {[%clk 0:00:10]} 78. Bg3 {[%clk 0:00:13]}  Kg4 {[%clk 0:00:11]} 79. Bf2 {[%clk 0:00:14]}  Kf5 {[%clk 0:00:12]} 80. Bg1 {[%clk 0:00:15]}  Kg4 {[%clk 0:00:12]} 81. Bh2 {[%clk 0:00:16]}  Kf5 {[%clk 0:00:13]} 82. Bg1 {[%clk 0:00:16]}  Kg4 {[%clk 0:00:14]} 83. Be3 {[%clk 0:00:17]}  Kh5 {[%clk 0:00:15]} 84. Bb6 {[%clk 0:00:18]}  Kg6 {[%clk 0:00:14]} 85. Ba7 {[%clk 0:00:19]}  Kf5 {[%clk 0:00:15]} 86. Bb8 {[%clk 0:00:20]}  Ke6 {[%clk 0:00:14]} 87. Ba7 {[%clk 0:00:20]}  Kd5 {[%clk 0:00:14]} 88. Bb8 {[%clk 0:00:21]}  Kc6 {[%clk 0:00:15]} 89. Ba7 {[%clk 0:00:22]}  Kb7 {[%clk 0:00:16]} 90. Bf2 {[%clk 0:00:23]}  Kc6 {[%clk 0:00:16]} 91. Bg3 {[%clk 0:00:24]}  Kd5 {[%clk 0:00:17]} 92. Kf3 {[%clk 0:00:25]}  Ke6 {[%clk 0:00:17]} 93. Kg4 {[%clk 0:00:26]}  Kf6 {[%clk 0:00:18]} 94. Bf2 {[%clk 0:00:25]}  Kg6 {[%clk 0:00:18]} 95. Be3 {[%clk 0:00:26]}  Kh7 {[%clk 0:00:18]} 96. Bxg5 {[%clk 0:00:27]} 1/2-1/2


[Site "https://www.chess.com"]